bitfinex/quotes_BTCUSD_20251114
["timestamp","ask_amount","ask_price","bid_price","bid_amount"]
[1763095872852,0.14406134,97614.0,97613.0,0.00013722]
[1763095873465,0.1006426,97614.0,97613.0,0.00013722]
[1763095873711,0.0465,97632.0,97629.0,0.20485716]
[1763095874114,0.09453,97647.0,97629.0,0.20485716]
[1763095874313,0.58635192,97650.0,97649.0,0.20481325]
[1763095874530,0.09453,97656.0,97652.0,0.20480822]
[1763095874752,0.09453,97669.0,97661.0,0.20479003]
[1763095874879,0.58635192,97680.0,97653.0,0.02048082]
[1763095875257,0.09405,97682.0,97679.0,0.20475073]
[1763095875467,0.0945063,97682.0,97677.0,0.20475545]
[1763095875672,0.0945063,97682.0,97678.0,0.20475256]
[1763095875822,0.0945063,97682.0,97660.0,0.0102396]
[1763095875823,0.1006426,97661.0,97660.0,0.0102396]
[1763095876021,0.1006426,97661.0,97660.0,0.21502963]
[1763095876608,0.4175063,97682.0,97680.0,0.20474916]
[1763095876791,0.0945063,97682.0,97681.0,0.02047492]
[1763095877003,0.0004563,97682.0,97681.0,0.02047492]
[1763095877252,0.3234563,97682.0,97681.0,0.02047492]
[1763095877469,0.0004563,97682.0,97681.0,0.02047492]
[1763095878574,0.0004563,97682.0,97640.0,0.41990585]
[1763095878575,0.01999998,97680.0,97619.0,0.04056123]
[1763095878777,0.01999998,97680.0,97600.0,0.0102459]
[1763095878778,0.36641874,97639.0,97600.0,0.0102459]
[1763095878988,0.04341874,97629.0,97600.0,0.0102459]
[1763095879136,0.323,97639.0,97601.0,0.11479618]
[1763095879340,0.04341874,97638.0,97602.0,0.01250421]
[1763095879541,0.04341874,97613.0,97580.0,0.055808]
[1763095879738,0.04341874,97613.0,97612.0,0.03250133]
[1763095880077,0.1006426,97629.0,97612.0,0.00188698]
[1763095880205,0.1006426,97613.0,97612.0,0.00013722]
[1763095880416,0.1006426,97613.0,97612.0,0.20503006]
[1763095880623,0.1006426,97613.0,97612.0,0.22553307]
[1763095880822,0.1006426,97613.0,97612.0,0.02064023]
[1763095881037,0.1006426,97613.0,97612.0,0.00013722]
[1763095881515,0.4236426,97613.0,97612.0,0.00013722]
[1763095881857,2.46706134,97613.0,97612.0,0.00013722]
[1763095882149,0.36641874,97612.0,97580.0,0.010248]
[1763095882322,0.04341874,97599.0,97580.0,0.010248]
[1763095882564,0.04341874,97599.0,97581.0,0.20495793]
[1763095882738,0.1006426,97597.0,97582.0,0.04201711]
[1763095882972,0.04341874,97596.0,97582.0,0.04201711]
[1763095883401,0.13746,97595.0,97565.0,0.20498961]
[1763095883578,0.04341874,97579.0,97567.0,0.20498723]
[1763095883803,0.04341874,97579.0,97574.0,0.20497117]
[1763095884000,0.04341874,97579.0,97560.0,0.0102501]
[1763095884001,0.36641874,97579.0,97561.0,0.20499994]
[1763095884213,0.04701,97595.0,97561.0,0.061345]
[1763095884404,0.1006426,97578.0,97575.0,0.20496878]
[1763095884583,0.1006426,97578.0,97560.0,0.0102501]
[1763095884824,0.1006426,97578.0,97560.0,0.01070733]
[1763095885025,0.1006426,97578.0,97574.0,0.20497128]
[1763095885272,0.1006426,97578.0,97576.0,0.2049669]
[1763095885412,0.1006426,97578.0,97569.0,0.20498229]
[1763095885622,0.1006426,97578.0,97575.0,0.20496865]
[1763095887193,0.09045,97584.0,97583.0,0.20495373]
[1763095887321,0.09045,97584.0,97566.0,0.20498754]
[1763095887530,0.04701,97570.0,97530.0,0.01999998]
[1763095887729,0.04701,97570.0,97569.0,0.18448103]
[1763095887958,0.04701,97570.0,97540.0,0.0102522]
[1763095888160,0.07016,97569.0,97567.0,0.20498643]
[1763095889573,0.39316,97569.0,97567.0,0.20498643]
[1763095889913,0.07016,97569.0,97567.0,0.20498643]
[1763095890066,0.07016,97569.0,97568.0,0.05759526]
[1763095890276,0.323,97597.0,97594.0,0.20493063]
[1763095890484,0.323,97597.0,97581.0,0.20495637]
[1763095890685,0.1006426,97598.0,97580.0,0.20495871]
[1763095890686,0.323,97582.0,97580.0,0.20495871]
[1763095891068,0.323,97582.0,97569.0,5.6e-07]
[1763095891285,0.04236426,97581.0,97570.0,0.20498103]
[1763095891510,0.323,97582.0,97570.0,0.01024905]
[1763095891957,0.323,97582.0,97579.0,0.20496159]
[1763095892165,0.323,97582.0,97575.0,0.20496872]
[1763095892392,0.323,97582.0,97570.0,0.20497965]
[1763095892608,0.323,97582.0,97541.0,0.1006426]
[1763095892609,0.36641874,97579.0,97541.0,0.1006426]
[1763095892827,0.323,97565.0,97560.0,0.0102501]
[1763095893047,0.323,97565.0,97561.0,0.20499994]
[1763095893290,0.323,97565.0,97563.0,0.20499478]
[1763095893702,0.001,97582.0,97581.0,0.20495793]
[1763095893829,0.1006426,97598.0,97589.0,0.20493999]
[1763095894036,0.1006426,97598.0,97593.0,0.20493073]
[1763095894230,0.1006426,97598.0,97581.0,0.02049579]
[1763095894231,0.1006426,97582.0,97581.0,0.02049579]
[1763095894553,0.1006426,97597.0,97593.0,0.20493273]
[1763095894952,0.04714666,97595.0,97593.0,0.20493273]
[1763095895155,0.04714666,97595.0,97593.0,0.26641327]
[1763095895394,0.04714666,97595.0,97593.0,0.20493273]
[1763095895607,0.04714666,97595.0,97564.0,0.40998519]
[1763095895608,0.04714666,97595.0,97570.0,0.21522798]
[1763095895815,0.04714666,97595.0,97594.0,0.20493063]
[1763095896176,0.04814666,97595.0,97594.0,0.20493063]
[1763095896581,0.04814666,97595.0,97570.0,0.01024905]
[1763095896812,0.04714666,97595.0,97570.0,0.01024905]
[1763095897105,0.323,97594.0,97571.0,0.20497893]
[1763095897321,0.323,97594.0,97593.0,0.20493219]
[1763095897692,0.323,97594.0,97590.0,0.20493789]
[1763095897897,0.323,97594.0,97591.0,0.20493693]
[1763095898338,0.323,97594.0,97570.0,0.01024905]
[1763095898691,0.323,97594.0,97593.0,0.20493273]
[1763095899091,0.323,97594.0,97591.0,0.20493549]
[1763095899543,0.14778926,97595.0,97591.0,0.20493549]
[1763095899544,0.00013666,97595.0,97594.0,0.20493063]
[1763095900194,1e-08,97595.0,97594.0,0.20493063]
[1763095901174,1e-08,97595.0,97594.0,0.20593063]
[1763095902388,1e-08,97595.0,97594.0,0.20493063]
[1763095902586,1e-08,97595.0,97570.0,0.01024905]
[1763095902797,0.323,97586.0,97580.0,0.20495828]
[1763095903230,0.323,97586.0,97583.0,0.20495333]
[1763095903648,0.323,97584.0,97570.0,0.01024905]
[1763095903848,0.323,97584.0,97583.0,0.20495373]
[1763095904878,1e-08,97595.0,97594.0,0.20493063]
[1763095905524,1e-08,97595.0,97583.0,0.08198379]
[1763095905746,0.1006426,97594.0,97560.0,0.87330875]
[1763095905961,0.1006426,97594.0,97583.0,0.001]
[1763095906402,1e-08,97595.0,97563.0,0.1006426]
[1763095906403,1e-08,97595.0,97592.0,0.20493274]
[1763095908190,1e-08,97595.0,97594.0,0.20493063]
[1763095909068,1e-08,97595.0,97594.0,0.57134937]
[1763095909289,1e-08,97595.0,97594.0,0.66983273]
[1763095909947,1e-08,97595.0,97594.0,0.67183273]
[1763095910390,1e-08,97595.0,97594.0,0.66983273]
[1763095912019,0.04701,97648.0,97628.0,0.20485799]
[1763095912189,0.1006426,97635.0,97610.0,0.01024485]
[1763095912411,0.323,97634.0,97630.0,0.2048547]
[1763095912538,0.323,97634.0,97630.0,0.22534017]
[1763095912741,0.323,97634.0,97632.0,0.20485051]
[1763095912946,0.323,97634.0,97630.0,0.22534017]
[1763095913391,0.1006426,97635.0,97630.0,0.22534017]
[1763095913567,0.1006426,97635.0,97632.0,0.2048499]
[1763095913777,0.04714711,97648.0,97638.0,0.20483704]
[1763095914002,0.1006426,97639.0,97621.0,0.0465]
[1763095914292,0.1006426,97639.0,97632.0,0.20484975]
[1763095914497,0.1006426,97639.0,97604.0,0.09683]
[1763095914648,0.04471,97611.0,97592.0,0.323]
[1763095914844,0.0495,97638.0,97592.0,0.323]
[1763095914845,0.04341874,97637.0,97600.0,0.0102459]
[1763095915100,0.1006426,97618.0,97595.0,0.09683]
[1763095915300,0.1006426,97618.0,97590.0,0.01024695]
[1763095915523,0.323,97617.0,97590.0,0.01024695]
[1763095915726,0.323,97617.0,97600.0,0.20491749]
[1763095915927,0.323,97617.0,97591.0,0.0056747]
[1763095916254,0.323,97617.0,97594.0,0.20492911]
[1763095916255,0.86305865,97610.0,97594.0,0.20492911]
[1763095916397,0.86305865,97610.0,97591.0,0.0056747]
[1763095916742,0.323,97617.0,97603.0,0.20491173]
[1763095916915,0.323,97617.0,97607.0,0.2049015]
[1763095917123,0.323,97617.0,97605.0,0.20490589]
[1763095917279,0.323,97617.0,97604.0,0.20490908]
[1763095917483,0.323,97617.0,97604.0,0.20490895]
[1763095917685,0.323,97617.0,97603.0,0.20491173]
[1763095917926,0.323,97617.0,97592.0,0.30176427]
[1763095918126,0.323,97617.0,97592.0,0.13324859]
[1763095918336,0.323,97617.0,97592.0,0.20493483]
[1763095918600,0.323,97617.0,97613.0,0.20489004]
[1763095918805,0.323,97617.0,97614.0,0.20488794]
[1763095919005,0.1006426,97618.0,97594.0,0.09683]
[1763095920127,0.1006426,97618.0,97616.0,0.20488417]
[1763095920323,0.1006426,97618.0,97594.0,0.09683]
[1763095920528,0.1006426,97618.0,97610.0,0.20489557]
[1763095920731,0.1006426,97618.0,97615.0,0.20488614]
[1763095921097,0.1006426,97618.0,97591.0,0.20492853]
[1763095921098,2.36641874,97617.0,97560.0,0.00999999]
[1763095921323,2.36641874,97617.0,97510.0,0.0004]
[1763095921324,0.323,97559.0,97510.0,0.0004]
[1763095921507,0.04341874,97542.0,97534.0,0.00054723]
[1763095921928,0.36641874,97540.0,97534.0,0.00054723]
[1763095922331,0.36641874,97536.0,97534.0,0.00054723]
[1763095922583,2.48313059,97535.0,97534.0,0.00054723]
[1763095922967,0.46706134,97535.0,97534.0,0.00054723]
[1763095923572,0.4236426,97535.0,97534.0,0.00054723]
[1763095923771,0.1006426,97535.0,97534.0,0.00054723]
[1763095924182,0.1006426,97535.0,97534.0,0.20560392]
[1763095924379,0.1006426,97535.0,97511.0,0.0963]
[1763095924581,0.1026426,97535.0,97534.0,0.20505669]
[1763095924957,0.1006426,97535.0,97532.0,0.20506]
[1763095925133,0.86305865,97550.0,97529.0,0.0963]
[1763095925339,0.001,97535.0,97523.0,0.20507861]
[1763095925535,0.001,97535.0,97526.0,0.20507192]
[1763095925780,0.86305865,97540.0,97527.0,0.20507141]
[1763095925983,0.86305865,97540.0,97523.0,0.20507863]
[1763095926184,0.86305865,97560.0,97553.0,0.2050147]
[1763095926424,0.90776865,97570.0,97530.0,0.01025325]
[1763095926628,0.86305865,97560.0,97557.0,0.20500768]
[1763095926832,0.1006426,97591.0,97564.0,0.04932]
[1763095926975,0.1006426,97591.0,97578.0,0.20496288]
[1763095926976,0.86305865,97580.0,97578.0,0.20496288]
[1763095927180,0.86305865,97588.0,97558.0,0.04962]
[1763095927499,0.86305865,97588.0,97551.0,0.09144]
[1763095927500,0.00045695,97588.0,97566.0,0.20498764]
[1763095927680,0.86305865,97580.0,97560.0,0.0102501]
[1763095927882,0.1006426,97576.0,97561.0,0.20499994]
[1763095928246,0.1006426,97576.0,97541.0,0.04962]
[1763095928247,0.04341874,97569.0,97541.0,0.04962]
[1763095928450,0.04341874,97569.0,97535.0,0.20505269]
[1763095928451,0.86305865,97560.0,97535.0,0.20505269]
[1763095928666,0.323,97559.0,97527.0,0.04962]
[1763095928870,0.09848336,97558.0,97537.0,0.20505039]
[1763095929074,0.323,97559.0,97546.0,0.20502947]
[1763095929262,0.1006426,97547.0,97531.0,0.09144]
[1763095929449,0.1006426,97547.0,97527.0,0.04962]
[1763095929450,0.1006426,97547.0,97532.0,0.2050609]
[1763095929972,0.1006426,97547.0,97535.0,0.20505301]
[1763095930133,0.1006426,97547.0,97533.0,0.2050588]
[1763095930296,0.1006426,97547.0,97486.0,0.45373331]
[1763095930297,2.0,97507.0,97460.0,0.0004]
[1763095930540,0.04471,97461.0,97460.0,0.0004]
[1763095930755,0.08812874,97461.0,97460.0,0.0004]
[1763095930983,2.41112874,97461.0,97460.0,0.0004]
[1763095931118,2.41112874,97461.0,97402.0,0.04971]
[1763095931315,0.04341874,97438.0,97402.0,9e-05]
[1763095931536,0.4236426,97431.0,97430.0,0.00085487]
[1763095931740,0.46706134,97431.0,97430.0,0.00085487]
[1763095931944,2.46706134,97431.0,97430.0,0.00085487]
[1763095932147,0.46706134,97431.0,97430.0,0.00085487]
[1763095932395,0.4236426,97431.0,97430.0,0.00085487]
[1763095932553,0.46706134,97431.0,97430.0,0.00085487]
[1763095933135,2.46706134,97431.0,97430.0,0.00085487]
[1763095933783,0.46706134,97431.0,97430.0,0.00085487]
[1763095934018,0.4236426,97431.0,97430.0,0.00085487]
[1763095934293,0.46706134,97431.0,97430.0,0.00085487]
[1763095935135,0.4236426,97431.0,97430.0,0.00085487]
[1763095935340,0.1016426,97431.0,97430.0,0.00085487]
[1763095935601,0.001,97431.0,97430.0,0.0214692]
[1763095936528,0.00999999,97440.0,97439.0,0.20525662]
[1763095936972,0.01999998,97450.0,97430.0,0.0214692]
[1763095937200,0.88305863,97440.0,97430.0,0.00085487]
[1763095937382,0.323,97439.0,97430.0,0.00085487]
[1763095937558,0.3721,97439.0,97430.0,0.00085487]
[1763095937808,0.323,97436.0,97430.0,0.00085487]
[1763095938007,0.04341874,97433.0,97430.0,0.00085487]
[1763095938268,0.46706134,97431.0,97430.0,0.00085487]
[1763095938409,0.00999999,97440.0,97430.0,0.00085487]
[1763095938627,0.00999999,97440.0,97431.0,0.02061335]
[1763095938790,0.00999999,97440.0,97437.0,0.20525894]
[1763095938998,0.00999999,97450.0,97438.0,0.20525872]
[1763095939250,0.00999999,97450.0,97431.0,0.1006426]
[1763095939550,0.1006426,97461.0,97459.0,0.2052145]
[1763095939815,0.1006426,97461.0,97431.0,0.1920826]
[1763095939816,0.00999999,97470.0,97453.0,0.04962]
[1763095940013,0.01999998,97470.0,97468.0,0.20519452]
[1763095940250,0.1006426,97491.0,97489.0,0.20515135]
[1763095940251,0.00999999,97490.0,97489.0,0.20515135]
[1763095940468,0.01999998,97490.0,97489.0,0.20515135]
[1763095940675,0.1006426,97491.0,97489.0,0.2461826]
[1763095940886,0.0495,97519.0,97489.0,0.2461826]
[1763095940887,0.1006426,97518.0,97489.0,0.04103125]
[1763095941077,0.1006426,97518.0,97470.0,0.01025956]
[1763095941078,0.00999999,97480.0,97470.0,0.01025956]
[1763095941354,0.00999999,97470.0,97467.0,0.20519559]
[1763095941557,0.00999999,97480.0,97478.0,0.20517429]
[1763095941795,0.00999999,97480.0,97475.0,0.20518081]
[1763095942263,0.00999999,97490.0,97469.0,0.20519344]
[1763095942486,0.00999999,97490.0,97468.0,0.2257109]
[1763095942487,0.01999998,97500.0,97470.0,1.06540081]
[1763095942728,0.00999999,97490.0,97489.0,0.20515135]
[1763095942953,0.01999998,97520.0,97490.0,0.09144]
[1763095943170,0.00999999,97520.0,97500.0,0.21538251]
[1763095943398,0.00999999,97530.0,97510.0,0.01025535]
[1763095943654,0.00999999,97540.0,97510.0,0.873314]
[1763095943870,0.01999998,97540.0,97529.0,0.20506721]
[1763095944096,0.01999998,97540.0,97513.0,0.1006426]
[1763095944097,0.00999999,97540.0,97520.0,0.86305865]
[1763095944338,0.01006426,97547.0,97545.0,0.20503186]
[1763095944574,0.5,97569.0,97555.0,0.20501186]
[1763095944771,0.01999998,97550.0,97549.0,0.20502516]
[1763095944944,0.001,97540.0,97539.0,0.20504618]
[1763095946253,0.00045703,97568.0,97567.0,0.20498734]
[1763095946417,0.00045703,97568.0,97565.0,0.20499061]
[1763095947057,0.00045703,97568.0,97550.0,0.86305865]
[1763095947206,0.00045703,97568.0,97546.0,0.09144]
[1763095947413,0.01999998,97560.0,97539.0,0.001]
[1763095947611,0.01999998,97550.0,97535.0,0.20505316]
[1763095947958,0.323,97566.0,97520.0,0.0102543]
[1763095947959,0.01999998,97540.0,97520.0,0.0102543]
[1763095948166,0.00999999,97530.0,97510.0,0.01025535]
[1763095948309,0.01999998,97530.0,97508.0,0.20510942]
[1763095948516,0.01999998,97520.0,97497.0,0.04962]
[1763095948722,0.00999999,97510.0,97492.0,0.1006426]
[1763095949104,0.01999998,97510.0,97504.0,0.20511875]
[1763095949311,0.01999998,97510.0,97492.0,0.20514426]
[1763095949515,0.01999998,97510.0,97492.0,0.20528075]
[1763095949516,0.00999999,97500.0,97492.0,0.20528075]
[1763095949757,0.00999999,97500.0,97498.0,0.20513065]
[1763095949976,0.00999999,97520.0,97500.0,0.01025641]
[1763095950164,0.00999999,97520.0,97507.0,0.20511172]
[1763095950372,0.00999999,97520.0,97509.0,0.20510745]
[1763095950373,0.0495,97519.0,97509.0,0.20510745]
[1763095950581,0.00999999,97510.0,97505.0,0.20511768]
[1763095950784,0.0495,97519.0,97506.0,0.20511445]
[1763095951043,0.0495,97519.0,97501.0,0.20512478]
[1763095951044,0.0495,97518.0,97515.0,0.20509505]
[1763095951393,0.0495,97518.0,97500.0,0.01025641]
[1763095951755,0.0495,97518.0,97515.0,0.20509603]
[1763095951961,0.0495,97518.0,97501.0,0.1006426]
[1763095952163,0.0495,97518.0,97510.0,0.20510683]
[1763095952386,0.0495,97518.0,97517.0,0.1006426]
[1763095952592,0.00999999,97540.0,97510.0,0.03076603]
[1763095952881,0.00999999,97540.0,97534.0,0.20505568]
[1763095953078,0.00999999,97550.0,97548.0,0.20502563]
[1763095953282,0.01999998,97560.0,97551.0,0.2050208]
[1763095953489,0.01999998,97560.0,97541.0,0.20504051]
[1763095953705,0.00999999,97550.0,97544.0,0.20503426]
[1763095953905,0.01999998,97560.0,97549.0,0.20502516]
[1763095954106,0.00013702,97550.0,97549.0,0.20502516]
[1763095954929,0.04431,97567.0,97566.0,0.20498944]
[1763095955142,0.04431,97567.0,97559.0,0.1006426]
[1763095955143,0.00045723,97567.0,97559.0,0.1006426]
[1763095955356,0.00045723,97567.0,97566.0,0.20498944]
[1763095956518,0.00045723,97567.0,97566.0,0.20698944]
[1763095956721,0.00045723,97567.0,97566.0,0.29925231]
[1763095957228,0.00045723,97567.0,97566.0,0.29725231]
[1763095957560,0.00145723,97567.0,97566.0,0.29725231]
[1763095957795,0.00145723,97567.0,97566.0,0.09226287]
[1763095958003,0.00145723,97567.0,97565.0,0.20499052]
[1763095958220,0.00999999,97560.0,97543.0,0.20503749]
[1763095958409,0.01999998,97560.0,97554.0,0.1001526]
[1763095958636,0.04332,97555.0,97545.0,0.20503151]
[1763095958758,0.04332,97555.0,97541.0,0.20504198]
[1763095958958,0.04332,97555.0,97552.0,0.2050182]
[1763095959185,0.04332,97555.0,97542.0,0.03159368]
[1763095959186,0.04332,97555.0,97550.0,0.20501756]
[1763095959382,0.04332,97555.0,97552.0,0.20501752]
[1763095959828,0.04332,97555.0,97549.0,0.20501755]
[1763095960062,0.04332,97555.0,97542.0,0.03159368]
[1763095960189,0.00999999,97550.0,97531.0,0.205063]
[1763095960406,0.00999999,97540.0,97533.0,0.1006426]
[1763095960609,0.00999999,97540.0,97533.0,0.12964684]
[1763095960966,0.0002,97610.0,97551.0,0.20501957]
[1763095961160,0.0002,97610.0,97607.0,0.20490213]
[1763095961375,0.00033714,97610.0,97607.0,0.20490213]
[1763095961779,0.00033714,97610.0,97590.0,0.86305865]
[1763095961985,0.04983714,97610.0,97604.0,0.1006426]
[1763095962202,0.04983714,97610.0,97592.0,0.1006426]
[1763095962403,0.04983714,97610.0,97606.0,0.20490542]
[1763095962605,0.04983714,97610.0,97607.0,0.20490332]
[1763095962822,0.00033714,97610.0,97607.0,0.20490332]
[1763095963053,1e-08,97610.0,97609.0,0.30554173]
[1763095963811,1e-08,97610.0,97609.0,0.34896047]
[1763095964794,1e-08,97610.0,97609.0,0.30554173]
[1763095965015,1e-08,97610.0,97609.0,0.34896047]
[1763095966391,1e-08,97610.0,97609.0,0.30554173]
[1763095966592,1e-08,97610.0,97609.0,0.4037139]
[1763095967318,1e-08,97610.0,97609.0,0.09767217]
[1763095967527,1e-08,97610.0,97587.0,0.2049435]
[1763095967725,0.049,97609.0,97593.0,0.1006426]
[1763095968007,1e-08,97610.0,97608.0,0.20490123]
[1763095968185,1e-08,97610.0,97608.0,0.30554383]
[1763095968393,1e-08,97610.0,97608.0,0.20490123]
[1763095968606,1e-08,97610.0,97609.0,0.16211391]
[1763095969252,1e-08,97610.0,97609.0,0.20553265]
[1763095970425,1e-08,97610.0,97609.0,0.29751265]
[1763095970600,1e-08,97610.0,97609.0,0.20553265]
[1763095971390,0.02072684,97654.0,97653.0,0.20480681]
[1763095971601,0.02086393,97654.0,97653.0,0.02048068]
[1763095971818,0.02086393,97654.0,97644.0,0.2048242]
[1763095972043,0.0495,97653.0,97642.0,0.2048287]
[1763095972254,0.00013709,97654.0,97651.0,0.20480901]
[1763095972474,0.0002,97720.0,97688.0,0.20473258]
[1763095972696,0.0149,97719.0,97700.0,0.04341874]
[1763095972919,0.01503703,97719.0,97691.0,0.04341874]
[1763095973123,0.0495,97718.0,97680.0,0.59840895]
[1763095973336,0.0495,97718.0,97699.0,0.20471011]
[1763095973542,0.0495,97718.0,97681.0,0.0598409]
[1763095973543,0.0495,97718.0,97705.0,0.20469641]
[1763095973744,0.0495,97718.0,97691.0,0.04341874]
[1763095973952,0.0495,97718.0,97710.0,0.20468727]
[1763095974184,0.0495,97718.0,97711.0,0.04093846]
[1763095974383,0.00013703,97719.0,97718.0,0.20467058]
[1763095976220,0.00013703,97719.0,97715.0,0.1006426]
[1763095976420,0.00013703,97719.0,97716.0,0.20467477]
[1763095976861,0.00013703,97719.0,97715.0,0.1006426]
[1763095977061,0.00013703,97719.0,97716.0,0.01006426]
[1763095977390,0.00013703,97719.0,97717.0,0.20467267]
[1763095977630,0.00013703,97719.0,97716.0,0.01006426]
[1763095977837,0.00013703,97719.0,97681.0,0.11058753]
[1763095978039,0.01572,97688.0,97682.0,0.1006426]
[1763095978645,0.01572,97688.0,97661.0,0.20478807]
[1763095978646,0.01572,97688.0,97668.0,0.20477536]
[1763095978801,0.0495,97687.0,97646.0,0.3072306]
[1763095979011,0.0495,97687.0,97631.0,0.1006426]
[1763095979012,0.0495,97687.0,97668.0,0.01006426]
[1763095979210,0.323,97679.0,97663.0,0.20478397]
[1763095979424,0.323,97679.0,97654.0,0.20480462]
[1763095979621,0.0495,97678.0,97656.0,0.20479918]
[1763095979844,0.0495,97678.0,97648.0,0.3054557]
[1763095980044,0.323,97669.0,97650.0,0.2048131]
[1763095980390,0.323,97669.0,97662.0,0.2047843]
[1763095980594,0.0495,97692.0,97663.0,0.1006426]
[1763095980803,0.0495,97692.0,97679.0,0.20475063]
[1763095981011,0.33872,97688.0,97681.0,0.30539056]
[1763095981219,0.0495,97718.0,97684.0,0.20474171]
[1763095981423,1e-08,97687.0,97686.0,0.24815636]
[1763095983685,1e-08,97687.0,97686.0,0.04341874]
[1763095983894,1e-08,97687.0,97685.0,0.25575024]
[1763095984096,1e-08,97687.0,97685.0,0.05101251]
[1763095984500,1e-08,97687.0,97683.0,0.204743]
[1763095984653,1e-08,97687.0,97685.0,0.20473818]
[1763095985058,0.01572,97688.0,97681.0,0.1006426]
[1763095985059,0.01428166,97688.0,97681.0,0.1006426]
[1763095985287,0.01428166,97688.0,97681.0,0.00045706]
[1763095985489,0.0002,97720.0,97681.0,0.00045706]
[1763095985490,0.0495,97718.0,97690.0,0.01023646]
[1763095985938,0.323,97709.0,97691.0,0.02149781]
[1763095986106,0.01428,97682.0,97681.0,0.20520391]
[1763095986442,0.01428,97682.0,97681.0,0.00045706]
[1763095987591,0.01428,97682.0,97631.0,0.1006426]
[1763095987794,0.323,97660.0,97631.0,0.1006426]
[1763095988003,0.02027,97632.0,97631.0,0.1006426]
[1763095988231,0.02027,97632.0,97610.0,0.01024485]
[1763095988430,0.02027,97632.0,97629.0,0.20485583]
[1763095988807,0.323,97640.0,97639.0,0.20483618]
[1763095989022,0.323,97640.0,97639.0,0.26628807]
[1763095989211,0.323,97665.0,97660.0,0.20479079]
[1763095989410,0.39257,97665.0,97640.0,0.20483408]
[1763095989612,0.39257,97665.0,97650.0,0.1006426]
[1763095989851,0.06957,97664.0,97641.0,0.20483198]
[1763095990060,0.06957,97664.0,97652.0,0.20480891]
[1763095990231,0.04341874,97700.0,97651.0,0.1006426]
[1763095990232,0.0495,97679.0,97651.0,0.1006426]
[1763095990613,0.0495,97679.0,97677.0,0.20475597]
[1763095990872,0.0495,97679.0,97676.0,0.20475668]
[1763095991047,0.0495,97679.0,97677.0,0.02047567]
[1763095991249,0.0495,97679.0,97676.0,0.20475669]
[1763095991673,0.0495,97679.0,97669.0,0.20477266]
[1763095991872,0.04995641,97679.0,97674.0,0.20476156]
[1763095992080,0.00045641,97679.0,97676.0,0.20475766]
[1763095992725,0.00045641,97679.0,97675.0,0.20475744]
[1763095992915,0.00045641,97679.0,97677.0,0.20475537]
[1763095993335,0.00045641,97679.0,97666.0,0.1006426]
[1763095993474,0.0495,97678.0,97666.0,0.1006426]
[1763095993699,0.06378,97678.0,97674.0,0.2047617]
[1763095993903,0.06378,97678.0,97673.0,0.20476487]
[1763095994260,0.06378,97678.0,97674.0,0.02047649]
[1763095994519,0.0495,97677.0,97659.0,0.20479423]
[1763095994724,0.0495,97677.0,97659.0,0.1006426]
[1763095994942,0.0495,97677.0,97674.0,0.2047615]
[1763095995181,0.01428,97678.0,97676.0,0.20475739]
[1763095996155,0.00045641,97679.0,97676.0,0.20475739]
[1763095996354,0.00045641,97679.0,97678.0,0.20475439]
[1763095998396,0.00045641,97679.0,97678.0,0.20459439]
[1763095998590,0.00045641,97679.0,97678.0,0.24801313]
[1763095999180,1e-08,97679.0,97678.0,0.24801313]
[1763096001427,1e-08,97679.0,97678.0,0.24817313]
[1763096001567,1e-08,97679.0,97678.0,0.33115638]
[1763096002866,1e-08,97679.0,97678.0,0.28773764]
[1763096003497,1e-08,97679.0,97678.0,0.08298325]
[1763096003703,1e-08,97679.0,97662.0,0.20478619]
[1763096003906,0.01428,97660.0,97657.0,0.20479768]
[1763096004358,0.01428,97660.0,97633.0,0.20484862]
[1763096004572,0.07227,97659.0,97626.0,0.1006426]
[1763096004781,0.07227,97659.0,97634.0,0.20484491]
[1763096004984,0.07227,97659.0,97627.0,0.1006426]
[1763096005364,0.323,97656.0,97627.0,0.1006426]
[1763096005604,0.323,97656.0,97628.0,0.1006426]
[1763096005896,0.07227,97655.0,97629.0,0.1006426]
[1763096006036,0.07227,97655.0,97631.0,0.01108854]
[1763096006267,0.07227,97655.0,97620.0,0.21511775]
[1763096006480,0.07227,97655.0,97628.0,0.20485778]
[1763096006695,0.07227,97655.0,97620.0,0.0102438]
[1763096006894,0.07227,97655.0,97629.0,0.20485532]
[1763096007094,0.323,97641.0,97624.0,0.20486704]
[1763096007395,0.07227,97655.0,97641.0,0.20483003]
[1763096007596,0.07227,97655.0,97637.0,0.20483907]
[1763096007800,0.07227,97655.0,97625.0,0.04199848]
[1763096007996,0.04279,97626.0,97622.0,0.2048686]
[1763096008213,0.04279,97626.0,97625.0,0.1006426]
[1763096008699,0.04279,97626.0,97625.0,0.20486555]
[1763096009123,0.04279,97626.0,97622.0,0.0004564]
[1763096009575,0.04279,97626.0,97623.0,0.20486975]
[1763096009804,0.04279,97626.0,97624.0,0.04101947]
[1763096010006,0.04279,97626.0,97625.0,0.003]
[1763096010549,0.04279,97626.0,97622.0,0.20532581]
[1763096010771,0.04279,97626.0,97623.0,0.20686975]
[1763096011033,0.04279,97626.0,97625.0,0.1006426]
[1763096011170,0.323,97637.0,97625.0,0.1006426]
[1763096011171,0.323,97637.0,97636.0,0.20484247]
[1763096011369,0.04279,97638.0,97636.0,0.24581166]
[1763096012423,0.0495,97655.0,97654.0,0.20480471]
[1763096012850,0.01428,97660.0,97657.0,0.20479704]
[1763096013387,0.01428,97660.0,97657.0,0.20479753]
[1763096013587,0.01428,97660.0,97658.0,0.04095953]
[1763096013790,0.01428,97660.0,97659.0,0.20479423]
[1763096014932,0.01428,97660.0,97658.0,0.14160213]
[1763096015246,0.01428,97660.0,97659.0,0.20479423]
[1763096016051,0.01428,97660.0,97659.0,0.20579423]
[1763096016273,0.0495,97679.0,97678.0,0.20475439]
[1763096016640,0.0495,97679.0,97676.0,0.20475762]
[1763096016846,0.0495,97679.0,97659.0,0.07574532]
[1763096016847,0.1006426,97660.0,97659.0,0.002]
[1763096017039,0.4236426,97660.0,97659.0,0.0015]
[1763096017251,0.323,97659.0,97634.0,0.20484508]
[1763096017611,0.323,97649.0,97635.0,0.02150878]
[1763096018014,0.323,97644.0,97635.0,0.02150878]
[1763096018215,0.323,97644.0,97634.0,0.00013695]
[1763096018448,0.04707,97643.0,97634.0,0.00013695]
[1763096018667,0.1006426,97660.0,97634.0,0.00013695]
[1763096018668,0.323,97649.0,97634.0,0.00013695]
[1763096018877,0.37007,97643.0,97634.0,0.00013695]
[1763096019085,0.04707,97642.0,97634.0,0.00013695]
[1763096019287,0.04707,97642.0,97634.0,0.04214672]